[Event "75th Argentine Women-ch 2024"]
[Site "Buenos Aires"]
[Date "2024.11.23"]
[Round "3.1"]
[White "Nejanky, Maisa"]
[Black "Campos, Maria Jose"]
[Result "0-1"]
[ECO "C22"]
[WhiteElo "1928"]
[BlackElo "2272"]
[Annotator "RC"]
[PlyCount "66"]
[EventDate "2024.11.21"]
[EventType "swiss"]
[EventCountry "ARG"]
[SourceTitle "playchess.com"]
[Source "ChessBase"]
[SourceQuality "1"]
[TimeControl "5400+30"]

1. e4 {[%emt 0:10:40]} e5 {[%emt 0:00:32]} 2. d4 {[%emt 0:00:11]} exd4 {[%emt 0:00:36]} 3. Qxd4 {[%emt 0:00:07]} Nc6 {[%emt 0:00:59]} 4. Qe3 {[%emt 0:00:06]} Nf6 {[%emt 0:01:48]} 5. Nc3 {[%emt 0:00:07]} Bb4 {[%emt 0:01:12]} 6. Bd2 {[%emt 0:00:06]} O-O {[%emt 0:01:26]} 7. O-O-O {[%emt 0:00:06]} Re8 {[%emt 0:02:12]} 8. Qg3 {[%emt 0:00:13]} d6 {[%emt 0:03:27]} 9. a3 {[%emt 0:07:37]} a5 {[%emt 0:04:49]} 10. f3 {[%emt 0:17:57]} Be6 {[%emt 0:02:29]} 11. Bb5 {[%emt 0:10:54]} Bxc3 {[%emt 0:01:32]} 12. Bxc3 {[%emt 0:00:17]} Nh5 {[%emt 0:01:01]} 13. Qf2 {[%emt 0:14:18]} Qg5+ {[%emt 0:00:41]} 14. f4 {[%emt 0:00:11]} Qxb5 {[%emt 0:01:38]} 15. f5 {[%emt 0:03:00]} Bd7 {[%emt 0:05:20]} 16. Qh4 {[%emt 0:18:55]} g6 {[%emt 0:14:27]} 17. Nf3 {[%emt 0:06:25]} Qe2 {[%emt 0:02:13]} 18. Ng5 {[%emt 0:03:43]} Ne5 {[%emt 0:02:27]} 19. h3 {[%emt 0:04:06]} Qe3+ {[%emt 0:00:23]} 20. Kb1 {[%emt 0:00:24]} Qg3 {[%emt 0:00:08]} 21. Qxg3 {[%emt 0:00:48]} Nxg3 {[%emt 0:00:02]} 22. Rhe1 {[%emt 0:00:34]} f6 {[%emt 0:05:31]} 23. Nf3 {[%emt 0:00:09]} gxf5 {[%emt 0:00:20]} 24. exf5 {[%emt 0:00:51]} Bxf5 {[%emt 0:01:01]} 25. Nd4 {[%emt 0:00:15]} Bg6 {[%emt 0:00:22]} 26. Nb5 {[%emt 0:00:20]} Re7 {[%emt 0:00:27]} 27. Re3 {[%emt 0:00:15]} Ne4 {[%emt 0:00:52]} 28. Be1 {[%emt 0:00:36]} c6 {[%emt 0:02:49]} 29. Nd4 {[%emt 0:00:30]} d5 {[%emt 0:00:39]} 30. g4 {[%emt 0:00:36]} Nc4 {[%emt 0:01:23]} 31. Rf3 {[%emt 0:00:17]} Rae8 {[%emt 0:01:17]} 32. h4 {[%emt 0:00:30]} Ng5 {[%emt 0:03:07]} 33. Rf1 {[%emt 0:00:15]} Ne3 {[%emt 0:00:42]} 0-1

[Event "75th Argentine Women-ch 2024"]
[Site "Buenos Aires"]
[Date "2024.11.23"]
[Round "3.2"]
[White "Adam, Ernestina"]
[Black "Maggiolo, Elisa"]
[Result "1-0"]
[ECO "B32"]
[WhiteElo "2154"]
[BlackElo "1922"]
[Annotator "RC"]
[PlyCount "85"]
[EventDate "2024.11.21"]
[EventType "swiss"]
[EventCountry "ARG"]
[SourceTitle "playchess.com"]
[Source "ChessBase"]
[SourceQuality "1"]
[TimeControl "5400+30"]

1. e4 {[%emt 0:00:04]} c5 {[%emt 0:00:34]} 2. Nf3 {[%emt 0:00:09]} Nc6 {[%emt 0:00:20]} 3. d4 {[%emt 0:00:19]} cxd4 {[%emt 0:00:26]} 4. Nxd4 {[%emt 0:00:09]} e5 {[%emt 1:31:10]} 5. Nb5 {[%emt 0:00:23]} d6 {[%emt 0:00:00]} 6. N1c3 {[%emt 0:00:34]} a6 {[%emt 0:00:00]} 7. Na3 {[%emt 0:00:08]} b5 {[%emt 0:00:00]} 8. Nd5 {[%emt 0:00:17]} Nf6 {[%emt 0:00:00]} 9. c4 {[%emt 0:00:31]} b4 {[%emt 0:00:00]} 10. Nc2 {[%emt 0:00:26]} Be7 {[%emt 0:00:00]} 11. Nxf6+ {[%emt 0:01:56]} Bxf6 {[%emt 0:00:00]} 12. Nxb4 {[%emt 1:31:34]} Qa5 {[%emt 0:00:00]} 13. Bd2 {[%emt 0:00:00]} Nxb4 {[%emt 0:00:00]} 14. a3 {[%emt 0:00:00]} Nc2+ {[%emt 0:00:00]} 15. Qxc2 {[%emt 0:01:30]} Qc7 16. Bd3 {[%emt 0:00:00]} Be6 {[%emt 0:00:00]} 17. O-O {[%emt 0:00:00]} O-O {[%emt 0:00:00]} 18. b4 {[%emt 0:00:00]} g6 {[%emt 0:00:00]} 19. Rac1 {[%emt 0:00:00]} Be7 {[%emt 0:00:00]} 20. Bh6 {[%emt 0:00:00]} Rfc8 {[%emt 0:00:00]} 21. f4 {[%emt 0:00:00]} f6 {[%emt 0:00:00]} 22. fxe5 {[%emt 0:00:00]} dxe5 {[%emt 0:00:00]} 23. Be3 {[%emt 0:00:00]} a5 {[%emt 0:00:00]} 24. c5 {[%emt 0:00:00]} axb4 {[%emt 0:00:00]} 25. Bc4 {[%emt 0:00:00]} Bxc4 {[%emt 0:00:00]} 26. Qxc4+ {[%emt 0:05:30]} Kg7 27. axb4 {[%emt 0:00:00]} Ra4 {[%emt 0:00:00]} 28. Rfd1 {[%emt 0:00:00]} Qc6 {[%emt 0:01:58]} 29. Bd2 {[%emt 0:00:00]} Qb7 {[%emt 0:04:59]} 30. Qd5 {[%emt 0:00:00]} Qb5 {[%emt 0:00:02]} 31. c6 {[%emt 0:00:00]} Qb6+ {[%emt 0:00:01]} 32. Kh1 {[%emt 0:00:00]} Rc7 {[%emt 0:00:32]} 33. Qe6 {[%emt 0:00:00]} Qf2 {[%emt 0:02:56]} 34. Qb3 {[%emt 0:00:00]} Qa7 {[%emt 0:00:48]} 35. Be3 {[%emt 0:00:00]} Ra3 {[%emt 0:02:04]} 36. Bxa7 {[%emt 0:00:00]} Rxb3 {[%emt 0:00:01]} 37. Bb6 {[%emt 0:01:53]} Rc8 {[%emt 0:00:02]} 38. Rd7 {[%emt 0:02:54]} Kf8 {[%emt 0:00:02]} 39. c7 {[%emt 0:00:19]} Ke8 {[%emt 0:00:25]} 40. Rcd1 {[%emt 0:00:12]} Rb1 {[%emt 0:03:20]} 41. Rd8+ {[%emt 0:00:55]} Bxd8 {[%emt 0:00:13]} 42. cxd8=Q+ {[%emt 0:00:20]} Rxd8 {[%emt 0:00:02]} 43. Rxb1 {[%emt 0:01:57]} 1-0

[Event "75th Argentine Women-ch 2024"]
[Site "Buenos Aires"]
[Date "2024.11.23"]
[Round "3.3"]
[White "Ramirez, Marysol"]
[Black "Brizzi, Milagros Tatiana"]
[Result "0-1"]
[ECO "D00"]
[WhiteElo "1824"]
[BlackElo "2114"]
[Annotator "RC"]
[PlyCount "76"]
[EventDate "2024.11.21"]
[EventType "swiss"]
[EventCountry "ARG"]
[SourceTitle "playchess.com"]
[Source "ChessBase"]
[SourceQuality "1"]
[TimeControl "5400+30"]

1. d4 {[%emt 0:00:06]} d5 {[%emt 0:00:19]} 2. Bf4 {[%emt 0:00:06]} c5 {[%emt 0:00:49]} 3. c3 {[%emt 0:00:23]} Nc6 {[%emt 0:01:09]} 4. e3 {[%emt 0:01:08]} Bf5 {[%emt 0:01:42]} 5. Qb3 {[%emt 0:06:44]} Qd7 {[%emt 0:03:33]} 6. Nf3 {[%emt 0:03:49]} e6 {[%emt 0:01:42]} 7. Bb5 {[%emt 0:07:11]} c4 {[%emt 0:06:39]} 8. Qa4 {[%emt 0:05:14]} f6 {[%emt 0:00:36]} 9. O-O {[%emt 0:08:53]} Nge7 {[%emt 0:03:00]} 10. Nbd2 {[%emt 0:03:41]} g5 {[%emt 0:11:57]} 11. Bg3 {[%emt 0:00:45]} h5 {[%emt 0:00:50]} 12. h4 {[%emt 0:05:27]} g4 {[%emt 0:04:21]} 13. Nh2 {[%emt 0:03:26]} Nc8 {[%emt 0:11:33]} 14. e4 {[%emt 0:20:15]} Nb6 {[%emt 0:02:38]} 15. Bxc6 {[%emt 0:08:39]} bxc6 {[%emt 0:00:16]} 16. Qc2 {[%emt 0:00:18]} Bh7 {[%emt 0:00:43]} 17. Rfe1 {[%emt 0:00:46]} Bh6 {[%emt 0:01:35]} 18. Nhf1 {[%emt 0:02:20]} O-O {[%emt 0:02:56]} 19. Qd1 {[%emt 0:02:28]} f5 {[%emt 0:15:44]} 20. exd5 {[%emt 0:04:47]} f4 {[%emt 0:05:38]} 21. dxe6 {[%emt 0:04:46]} Qe7 {[%emt 0:00:45]} 22. Bh2 {[%emt 0:01:39]} Rae8 {[%emt 0:02:57]} 23. b3 {[%emt 0:06:18]} Qxh4 {[%emt 0:03:17]} 24. bxc4 {[%emt 0:01:50]} Qf6 {[%emt 0:06:04]} 25. c5 {[%emt 0:00:58]} Nd5 {[%emt 0:00:57]} 26. Nc4 {[%emt 0:00:51]} Nxc3 {[%emt 0:01:48]} 27. Qb3 {[%emt 0:00:15]} Nd5 {[%emt 0:00:20]} 28. Ne5 {[%emt 0:00:15]} Qxe6 {[%emt 0:02:21]} 29. Qb7 {[%emt 0:00:28]} Ne7 {[%emt 0:04:51]} 30. Nd7 {[%emt 0:00:39]} Qd5 {[%emt 0:01:47]} 31. Nxf8 {[%emt 0:00:19]} Kxf8 {[%emt 0:00:08]} 32. Rad1 {[%emt 0:00:17]} Bc2 {[%emt 0:01:48]} 33. Re5 {[%emt 0:00:30]} Qxa2 {[%emt 0:01:12]} 34. Rde1 {[%emt 0:00:08]} Qf7 {[%emt 0:00:23]} 35. Nd2 {[%emt 0:01:14]} Bg7 {[%emt 0:00:44]} 36. Re6 {[%emt 0:00:41]} Bxd4 {[%emt 0:00:36]} 37. Nc4 {[%emt 0:00:38]} g3 {[%emt 0:00:27]} 38. Rxe7 {[%emt 0:00:43]} gxf2+ {[%emt 0:00:33]} 0-1

[Event "75th Argentine Women-ch 2024"]
[Site "Buenos Aires"]
[Date "2024.11.23"]
[Round "3.4"]
[White "Herrera, Solange"]
[Black "Zuriel, Marisa"]
[Result "0-1"]
[ECO "A57"]
[WhiteElo "1880"]
[BlackElo "2163"]
[Annotator "RC"]
[PlyCount "107"]
[EventDate "2024.11.21"]
[EventType "swiss"]
[EventCountry "ARG"]
[SourceTitle "playchess.com"]
[Source "ChessBase"]
[SourceQuality "1"]
[TimeControl "5400+30"]

1. d4 {[%emt 0:00:06]} Nf6 {[%emt 0:00:11]} 2. c4 {[%emt 0:00:07]} c5 {[%emt 0:00:23]} 3. d5 {[%emt 0:00:18]} b5 {[%emt 0:00:06]} 4. cxb5 {[%emt 0:00:22]} e6 {[%emt 0:03:10]} 5. Nc3 {[%emt 0:02:25]} a6 {[%emt 0:03:43]} 6. e4 {[%emt 0:02:12]} axb5 {[%emt 0:08:24]} 7. dxe6 {[%emt 0:21:57]} fxe6 {[%emt 0:01:54]} 8. e5 {[%emt 0:03:06]} Nd5 {[%emt 0:20:33]} 9. Nxd5 {[%emt 0:08:31]} exd5 {[%emt 0:00:05]} 10. Qxd5 {[%emt 0:00:14]} Nc6 {[%emt 0:01:15]} 11. Be2 {[%emt 0:20:59]} Qc7 {[%emt 0:04:22]} 12. Nf3 {[%emt 0:09:56]} Bb7 {[%emt 0:02:26]} 13. e6 {[%emt 0:14:45]} O-O-O {[%emt 0:04:43]} 14. exd7+ {[%emt 0:02:13]} Rxd7 {[%emt 0:00:11]} 15. Qe6 {[%emt 0:04:44]} Kb8 {[%emt 0:02:06]} 16. Be3 {[%emt 0:01:14]} Nd4 {[%emt 0:11:54]} 17. Nxd4 {[%emt 0:00:10]} cxd4 {[%emt 0:00:06]} 18. Rc1 {[%emt 0:00:04]} Qd8 {[%emt 0:02:18]} 19. Bxb5 {[%emt 0:02:52]} Qa5+ {[%emt 0:14:00]} 20. Bd2 {[%emt 0:02:29]} Qxb5 {[%emt 0:00:12]} 21. Bf4+ {[%emt 0:01:13]} Ka7 {[%emt 0:00:36]} 22. Qc4 {[%emt 0:00:40]} Qb4+ {[%emt 0:06:16]} 23. Bd2 {[%emt 0:00:40]} Qxc4 {[%emt 0:01:01]} 24. Rxc4 {[%emt 0:00:01]} Bxg2 {[%emt 0:00:18]} 25. Rg1 {[%emt 0:01:03]} Bf3 {[%emt 0:00:26]} 26. Ra4+ {[%emt 0:00:07]} Kb7 {[%emt 0:00:16]} 27. Bf4 {[%emt 0:00:29]} Bc6 {[%emt 0:02:00]} 28. Rc4 {[%emt 0:00:51]} Bb5 {[%emt 0:00:12]} 29. Rc1 {[%emt 0:00:12]} Bb4+ {[%emt 0:00:23]} 30. Kd1 {[%emt 0:00:41]} d3 {[%emt 0:00:22]} 31. Bd2 {[%emt 0:00:22]} Bd6 {[%emt 0:01:43]} 32. Rg5 {[%emt 0:00:27]} Bc6 {[%emt 0:00:17]} 33. Rc3 {[%emt 0:00:35]} Bc7 {[%emt 0:04:13]} 34. Rgc5 {[%emt 0:00:31]} Bf3+ {[%emt 0:01:51]} 35. Kc1 {[%emt 0:00:05]} Re8 {[%emt 0:00:13]} 36. Rb3+ {[%emt 0:00:53]} Bb6 {[%emt 0:00:08]} 37. Rcb5 {[%emt 0:00:31]} Re6 {[%emt 0:01:15]} 38. a4 {[%emt 0:00:20]} Ka6 {[%emt 0:02:48]} 39. a5 {[%emt 0:00:40]} Bxf2 {[%emt 0:00:12]} 40. Rf5 {[%emt 0:00:41]} Rf6 {[%emt 0:00:29]} 41. Re5 {[%emt 0:00:29]} Rc6+ {[%emt 0:01:25]} 42. Kb1 {[%emt 0:00:28]} Bd1 {[%emt 0:00:05]} 43. Rb8 {[%emt 0:00:29]} Ba7 {[%emt 0:01:20]} 44. Rb4 {[%emt 0:00:29]} Bc2+ {[%emt 0:00:30]} 45. Ka2 {[%emt 0:00:21]} Rd4 {[%emt 0:00:19]} 46. Rxd4 {[%emt 0:00:43]} Bxd4 {[%emt 0:00:01]} 47. Re7 {[%emt 0:00:03]} Rg6 {[%emt 0:01:42]} 48. Rd7 {[%emt 0:00:15]} Rg2 {[%emt 0:01:01]} 49. Rd6+ {[%emt 0:00:46]} Ka7 {[%emt 0:00:26]} 50. Rd7+ {[%emt 0:00:13]} Ka8 {[%emt 0:00:41]} 51. Bf4 {[%emt 0:01:08]} d2 {[%emt 0:00:49]} 52. Rd8+ {[%emt 0:01:20]} Kb7 53. Rd7+ {[%emt 0:00:00]} Ka6 {[%emt 0:01:40]} 54. Bxd2 {[%emt 0:01:00]} 0-1

[Event "75th Argentine Women-ch 2024"]
[Site "Buenos Aires"]
[Date "2024.11.23"]
[Round "3.5"]
[White "Gaite, Karen Nerina"]
[Black "Alvarez, Mia Morena"]
[Result "0-1"]
[ECO "D12"]
[WhiteElo "1997"]
[BlackElo "1653"]
[Annotator "RC"]
[PlyCount "70"]
[EventDate "2024.11.21"]
[EventType "swiss"]
[EventCountry "ARG"]
[SourceTitle "playchess.com"]
[Source "ChessBase"]
[SourceQuality "1"]
[TimeControl "5400+30"]

1. c4 {[%emt 0:00:04]} c6 {[%emt 0:00:14]} 2. Nf3 {[%emt 0:00:05]} d5 {[%emt 0:00:26]} 3. e3 {[%emt 0:00:07]} Nf6 {[%emt 0:00:45]} 4. b3 {[%emt 0:00:31]} Bf5 {[%emt 0:00:36]} 5. Bb2 {[%emt 0:00:30]} e6 {[%emt 0:00:31]} 6. Nc3 {[%emt 0:01:03]} Be7 {[%emt 0:01:04]} 7. d4 {[%emt 0:02:26]} h6 {[%emt 0:05:22]} 8. Bd3 {[%emt 0:02:03]} Bxd3 {[%emt 0:00:45]} 9. Qxd3 {[%emt 0:00:09]} Nbd7 {[%emt 0:02:22]} 10. O-O {[%emt 0:00:30]} O-O {[%emt 0:00:12]} 11. Ne5 {[%emt 0:03:19]} Nxe5 {[%emt 0:07:16]} 12. dxe5 {[%emt 0:00:13]} Nd7 {[%emt 0:00:29]} 13. f4 {[%emt 0:02:25]} a6 {[%emt 0:03:22]} 14. Kh1 {[%emt 0:03:13]} b5 {[%emt 0:01:36]} 15. cxd5 {[%emt 0:06:20]} cxd5 {[%emt 0:01:36]} 16. Rfd1 {[%emt 0:03:09]} Nc5 {[%emt 0:01:22]} 17. Qe2 {[%emt 0:03:55]} b4 {[%emt 0:02:07]} 18. Nb1 {[%emt 0:01:20]} Ne4 {[%emt 0:02:53]} 19. Rc1 {[%emt 0:14:18]} Rc8 {[%emt 0:05:17]} 20. Nd2 {[%emt 0:05:29]} Nxd2 {[%emt 0:07:19]} 21. Qxd2 {[%emt 0:00:10]} Qd7 {[%emt 0:05:12]} 22. e4 {[%emt 0:10:20]} Rfd8 {[%emt 0:11:42]} 23. Rxc8 {[%emt 0:05:17]} Qxc8 {[%emt 0:00:10]} 24. exd5 {[%emt 0:03:13]} Rxd5 {[%emt 0:00:42]} 25. Qe3 {[%emt 0:13:20]} Bc5 {[%emt 0:02:36]} 26. Qc1 {[%emt 0:00:28]} Qd7 {[%emt 0:05:15]} 27. h3 {[%emt 0:02:20]} Ba7 {[%emt 0:00:38]} 28. Rb1 {[%emt 0:07:26]} Rd2 {[%emt 0:01:51]} 29. Qe1 {[%emt 0:02:08]} Bf2 {[%emt 0:04:25]} 30. Qe4 {[%emt 0:04:01]} Rd1+ {[%emt 0:00:31]} 31. Kh2 {[%emt 0:00:06]} Rd3 {[%emt 0:05:36]} 32. Rf1 {[%emt 0:01:08]} Bg3+ {[%emt 0:00:20]} 33. Kh1 {[%emt 0:00:01]} Rd2 {[%emt 0:02:07]} 34. Bc1 {[%emt 0:02:35]} Rf2 {[%emt 0:03:08]} 35. Rxf2 {[%emt 0:02:01]} Qd1+ {[%emt 0:00:32]} 0-1

[Event "75th Argentine Women-ch 2024"]
[Site "Buenos Aires"]
[Date "2024.11.23"]
[Round "3.6"]
[White "Palomares, Lujan"]
[Black "Bosco, Giuliana"]
[Result "0-1"]
[ECO "B87"]
[WhiteElo "1633"]
[BlackElo "1953"]
[Annotator "RC"]
[PlyCount "52"]
[EventDate "2024.11.21"]
[EventType "swiss"]
[EventCountry "ARG"]
[SourceTitle "playchess.com"]
[Source "ChessBase"]
[SourceQuality "1"]
[TimeControl "5400+30"]

1. e4 {[%emt 0:00:03]} c5 {[%emt 0:00:09]} 2. Nf3 {[%emt 0:00:36]} e6 {[%emt 0:00:12]} 3. d4 {[%emt 0:00:43]} cxd4 {[%emt 0:00:08]} 4. Nxd4 {[%emt 0:00:18]} a6 {[%emt 1:32:01]} 5. Bc4 {[%emt 0:06:42]} Qc7 {[%emt 0:00:30]} 6. Bb3 {[%emt 0:08:09]} Nf6 {[%emt 0:00:00]} 7. f3 {[%emt 0:14:27]} d6 {[%emt 0:00:00]} 8. Nc3 {[%emt 0:10:55]} Be7 {[%emt 0:00:00]} 9. Be3 {[%emt 0:53:07]} Nbd7 {[%emt 0:00:00]} 10. a3 {[%emt 0:00:00]} Nc5 {[%emt 0:00:00]} 11. Ba2 {[%emt 0:00:00]} b5 {[%emt 0:00:00]} 12. O-O {[%emt 0:00:00]} Bb7 {[%emt 0:00:00]} 13. Re1 {[%emt 0:00:00]} O-O {[%emt 0:00:00]} 14. Bf2 {[%emt 0:00:00]} Rfd8 {[%emt 0:00:00]} 15. Qe2 {[%emt 0:00:00]} Rac8 {[%emt 0:05:00]} 16. Rad1 {[%emt 0:03:30]} Ba8 {[%emt 0:00:00]} 17. Qe3 {[%emt 0:00:00]} Qb8 {[%emt 0:00:00]} 18. Bg3 {[%emt 0:00:00]} b4 {[%emt 0:00:00]} 19. axb4 {[%emt 0:00:00]} Qxb4 {[%emt 0:00:00]} 20. Nb3 {[%emt 0:00:00]} d5 {[%emt 0:00:00]} 21. Bf2 {[%emt 0:00:28]} Nxb3 {[%emt 0:00:00]} 22. Bxb3 {[%emt 0:00:25]} Bc5 {[%emt 0:00:00]} 23. Qe2 {[%emt 0:00:47]} d4 {[%emt 0:00:00]} 24. Na2 {[%emt 0:00:54]} Qb6 {[%emt 0:00:00]} 25. Qd3 {[%emt 0:00:55]} Bc6 {[%emt 0:05:00]} 26. Qd2 {[%emt 0:01:31]} a5 {[%emt 0:00:30]} 0-1

[Event "75th Argentine Women-ch 2024"]
[Site "Buenos Aires"]
[Date "2024.11.23"]
[Round "3.7"]
[White "Bossero, Ingrid"]
[Black "Perez Lascano, Lucila"]
[Result "1/2-1/2"]
[ECO "B34"]
[WhiteElo "1694"]
[BlackElo "1593"]
[Annotator "NA RC"]
[PlyCount "56"]
[EventDate "2024.11.21"]
[EventType "swiss"]
[EventCountry "ARG"]
[SourceTitle "playchess.com"]
[Source "ChessBase"]
[SourceQuality "1"]
[TimeControl "5400+30"]

1. e4 {[%emt 0:00:01]} c5 {[%emt 0:00:32]} 2. Nf3 {[%emt 0:00:06]} Nc6 {[%emt 0:00:08]} 3. d4 {[%emt 0:00:08]} cxd4 {[%emt 0:00:07]} 4. Nxd4 {[%emt 0:00:04]} g6 {[%emt 0:00:09]} 5. c3 {[%emt 0:02:04]} Bg7 {[%emt 0:00:51]} 6. Be3 {[%emt 0:01:06]} Nf6 {[%emt 0:00:54]} 7. Nxc6 {[%emt 0:08:53]} bxc6 {[%emt 0:00:09]} 8. Bd3 {[%emt 0:00:32]} O-O {[%emt 0:01:01]} 9. O-O {[%emt 0:00:28]} d5 {[%emt 0:03:01]} 10. exd5 {[%emt 0:05:28]} cxd5 {[%emt 0:04:56]} 11. Re1 {[%emt 0:05:16]} Ng4 {[%emt 0:04:26]} 12. Bf4 {[%emt 0:07:13]} Qb6 {[%emt 0:10:29]} 13. Qd2 {[%emt 0:00:46]} e5 {[%emt 0:03:53]} 14. Bg3 {[%emt 0:10:46]} Bh6 {[%emt 0:08:27]} 15. Qc2 {[%emt 0:01:02]} e4 {[%emt 0:01:20]} 16. Be2 {[%emt 0:01:58]} e3 {[%emt 0:07:07]} 17. Bxg4 {[%emt 0:01:30]} Bxg4 {[%emt 0:00:21]} 18. fxe3 {[%emt 0:02:41]} Rfe8 {[%emt 0:15:49]} 19. Na3 {[%emt 0:12:24]} Bxe3+ {[%emt 0:10:41]} 20. Bf2 {[%emt 0:08:56]} Rab8 {[%emt 0:01:44]} 21. b4 {[%emt 0:08:58]} Bf5 {[%emt 0:07:25]} 22. Qb2 {[%emt 0:10:31]} Bxf2+ {[%emt 0:03:50]} 23. Qxf2 {[%emt 0:00:08]} Qa6 {[%emt 0:00:38]} 24. Nc2 {[%emt 0:03:11]} Qd3 {[%emt 0:04:29]} 25. Rac1 {[%emt 0:02:28]} Be4 {[%emt 0:04:13]} 26. Ne3 {[%emt 0:01:48]} Rbc8 {[%emt 0:02:35]} 27. Ng4 {[%emt 0:00:41]} Re6 {[%emt 0:00:51]} 28. Rf1 {[%emt 0:01:19]} Rc7 {[%emt 0:00:57]} 1/2-1/2

[Event "75th Argentine Women-ch 2024"]
[Site "Buenos Aires"]
[Date "2024.11.23"]
[Round "3.8"]
[White "Amura, Claudia"]
[Black "Quiroga Ortiz, Isabella"]
[Result "1-0"]
[ECO "B13"]
[WhiteElo "2183"]
[BlackElo "1508"]
[Annotator "RC"]
[PlyCount "39"]
[EventDate "2024.11.21"]
[EventType "swiss"]
[EventCountry "ARG"]
[SourceTitle "playchess.com"]
[Source "ChessBase"]
[SourceQuality "1"]
[TimeControl "5400+30"]

1. e4 {[%emt 0:00:17]} c6 {[%emt 0:00:00]} 2. d4 {[%emt 0:00:00]} d5 {[%emt 0:00:00]} 3. exd5 {[%emt 0:00:00]} cxd5 {[%emt 0:00:00]} 4. Bd3 {[%emt 0:00:00]} Nf6 {[%emt 0:00:12]} 5. c3 {[%emt 0:00:20]} Bg4 {[%emt 0:01:03]} 6. Qb3 {[%emt 0:01:12]} Qd7 {[%emt 0:03:09]} 7. Bf4 {[%emt 0:00:45]} Nc6 {[%emt 0:00:18]} 8. Nd2 {[%emt 0:00:06]} a6 {[%emt 0:05:11]} 9. Ngf3 {[%emt 0:07:01]} Bxf3 {[%emt 0:07:41]} 10. Nxf3 {[%emt 0:00:07]} e6 {[%emt 0:00:18]} 11. O-O {[%emt 0:02:56]} g6 {[%emt 0:03:38]} 12. a4 {[%emt 0:15:22]} Qe7 {[%emt 0:04:52]} 13. Qb6 {[%emt 0:05:11]} Rc8 {[%emt 0:05:08]} 14. h3 {[%emt 0:03:27]} Bg7 {[%emt 0:05:35]} 15. b4 {[%emt 0:04:48]} Nd8 {[%emt 0:04:17]} 16. b5 {[%emt 0:06:29]} Rxc3 {[%emt 0:10:51]} 17. bxa6 {[%emt 0:00:31]} Nd7 {[%emt 0:11:16]} 18. Qb2 {[%emt 0:06:00]} Bxd4 {[%emt 0:06:06]} 19. Nxd4 {[%emt 0:00:26]} Qc5 {[%emt 0:00:52]} 20. Nb5 {[%emt 0:03:43]} 1-0

[Event "75th Argentine Women-ch 2024"]
[Site "Buenos Aires"]
[Date "2024.11.23"]
[Round "3.9"]
[White "Montiel Marin, Micaela Agustina"]
[Black "Perez Mosqueda, Valeria Ritzabeth"]
[Result "1-0"]
[ECO "E01"]
[WhiteElo "1880"]
[BlackElo "1476"]
[Annotator "NA RC"]
[PlyCount "55"]
[EventDate "2024.11.21"]
[EventType "swiss"]
[EventCountry "ARG"]
[SourceTitle "playchess.com"]
[Source "ChessBase"]
[SourceQuality "1"]
[TimeControl "5400+30"]

1. d4 {[%emt 0:00:06]} e6 {[%emt 0:02:41]} 2. c4 {[%emt 0:00:06]} f5 {[%emt 0:00:05]} 3. Nf3 {[%emt 0:00:17]} Nf6 {[%emt 0:00:13]} 4. g3 {[%emt 0:00:48]} c6 {[%emt 0:00:52]} 5. Bg2 {[%emt 0:00:37]} d5 {[%emt 0:00:24]} 6. O-O {[%emt 0:00:27]} Bd6 {[%emt 0:00:20]} 7. Qc2 {[%emt 0:01:20]} Nbd7 {[%emt 0:00:17]} 8. Ne1 {[%emt 0:07:21]} O-O {[%emt 0:08:17]} 9. Nd3 {[%emt 0:00:47]} Ne4 {[%emt 0:05:43]} 10. Bf4 {[%emt 0:00:29]} Bxf4 {[%emt 0:06:24] E01: Catalan: Early deviations.} 11. Nxf4 {[%emt 0:00:56]} Rf6 {[%emt 0:12:50]} 12. f3 {[%emt 0:17:00]} Nd6 {[%emt 0:01:40]} 13. Nd2 {[%emt 0:00:11]} dxc4 {[%emt 0:18:14]} 14. Nxc4 {[%emt 0:00:12]} Nxc4 {[%emt 0:00:52]} 15. Qxc4 {[%emt 0:00:02]} Nb6 {[%emt 0:01:16]} 16. Qc5 {[%emt 0:06:30]} Nd5 {[%emt 0:04:14]} 17. Nxd5 {[%emt 0:06:40]} exd5 {[%emt 0:00:05]} 18. e4 {[%emt 0:01:10]} fxe4 {[%emt 0:00:54]} 19. fxe4 {[%emt 0:00:07]} Rxf1+ {[%emt 0:00:31]} 20. Rxf1 {[%emt 0:00:02]} dxe4 {[%emt 0:00:54]} 21. Bxe4 {[%emt 0:02:44]} Be6 {[%emt 0:03:53]} 22. Rf2 $11 {[%emt 0:16:18]} h6 {[%emt 0:23:11]} 23. Bb1 {[%emt 0:01:48]} Qd7 {[%emt 0:02:42]} 24. Qc2 {[%emt 0:00:46]} g6 {[%emt 0:05:18]} 25. Qxg6+ {[%emt 0:00:25]} Kh8 {[%emt 0:00:32]} 26. Qxh6+ {[%emt 0:01:26]} Kg8 {[%emt 0:00:17]} 27. Qg6+ {[%emt 0:04:49]} Kh8 {[%emt 0:00:50]} 28. Rf4 {[%emt 0:00:11]} 1-0